Cogmind - Beta 10.2 @@@ ROGUE MODE // 2021.10.26 @ 19:32:35 // Winter2019/RPGLIKE Player: SHOCK Result: Self-destructed Performance ------------- Evolutions (3) 1500 Regions Visited (10) 2000 Robots Destroyed (131) 655 Value Destroyed (4967) 4967 Prototype IDs (29) 580 Alien Tech Used (0) 0 Bonus (1312) 1312 TOTAL SCORE: 11014 Bonus ------- High Alert Combat Kills 354 Follower Combat Kills 107 Entered Garrisons 200 Used RIF Installer 500 Aligned with FarCom 300 Friendly Fire -149 Cogmind --------- Core Integrity 1000/1000 Matter 302/500 Energy 700/700 System Corruption 0% Temperature Cool (0) Movement Flying (34) Location -7/Factory Parts ------- > --- POWER (2) -------- Nuclear Core Light Nuclear Core > --- PROPULSION (4) --- Flight Unit VTOL Module VTOL Module > --- UTILITY (12) ----- Advanced Visual Processing Unit Improved Signal Interpreter Improved Terrain Scanner Advanced Targeting Computer Core Analyzer Improved Utility Shielding Hacking Suite Hacking Suite System Shield Relay Coupler [NC] (44) Relay Coupler [Sentry] (44) Supersonic Drone Bay (1/1) > --- WEAPON (6) ------- Heavy Assault Rifle Heavy Assault Rifle Heavy Assault Rifle Improved Assault Rifle Bore Cannon Remote Datajack > --- INVENTORY (10) --- Flying Fortress v7 Cloak of Protection Relay Coupler [NC] (46) Relay Coupler [Sentry] (34) Improved Lightning Gun Ion Burst Cannon Peak State ------------ > --- POWER ------------ Nuclear Core Light Nuclear Core > --- PROPULSION ------- VTOL Module VTOL Module > --- UTILITY ---------- Advanced Visual Processing Unit Improved Signal Interpreter Improved Terrain Scanner Advanced Targeting Computer Core Analyzer Improved Utility Shielding Hacking Suite Hacking Suite System Shield Relay Coupler [NC] Relay Coupler [Sentry] Supersonic Drone Bay > --- WEAPON ----------- Heavy Assault Rifle Heavy Assault Rifle Heavy Assault Rifle Improved Assault Rifle Bore Cannon Remote Datajack > --- INVENTORY -------- Flying Fortress v7 Cloak of Protection Relay Coupler [NC] Relay Coupler [Sentry] Improved Lightning Gun Advanced Beam Cannon Ion Burst Cannon [Rating: 73] Favorites ----------- Power Ion Engine Engine Ion Engine Power Core Light Nuclear Core Propulsion VTOL Module Wheel Compact Wheel Flight Unit VTOL Module Utility Improved Terrain Scanner Device Improved Terrain Scanner Processor Core Analyzer Hackware Hacking Suite Protection Improved Utility Shielding Weapon Heavy Assault Rifle Energy Gun Small Laser Energy Cannon Ion Burst Cannon Ballistic Gun Heavy Assault Rifle Ballistic Cannon Bore Cannon Launcher Rocket Launcher Special Weapon Remote Datajack Build | -11 -10 -10 -9 -9 -9 -8 -8 -8 -8 -7 ------- Run | Scr Mat Min Mat Min Exi Min Mat Gar Sto Fac Slots Evolved 20 | 16 . . 1 . . . 1 1 1 . Power 1 | 1 . . . . . . . . . . Propulsion 3 | 3 . . . . . . . . . . Utility 11 | 7 . . 1 . . . 1 1 1 . Weapon 5 | 5 . . . . . . . . . . Parts Attached 65 | 11 2 2 7 2 2 1 21 5 12 . Power 5 | 2 . . . . . . 3 . . . Engine 2 | 2 . . . . . . . . . . Core 3 | . . . . . . . 3 . . . Reactor . | . . . . . . . . . . . Propulsion 14 | 4 . . 3 1 1 . 4 . 1 . Treads . | . . . . . . . . . . . Leg . | . . . . . . . . . . . Wheel 4 | 4 . . . . . . . . . . Hover . | . . . . . . . . . . . Flight 10 | . . . 3 1 1 . 4 . 1 . Utility 18 | 2 1 . . 1 1 . 8 2 3 . Device 6 | 2 . . . . 1 . 2 . 1 . Storage . | . . . . . . . . . . . Processor 5 | . . . . 1 . . 3 . 1 . Hackware 5 | . 1 . . . . . 2 2 . . Protection 2 | . . . . . . . 1 . 1 . Artifact . | . . . . . . . . . . . Weapon 28 | 3 1 2 4 . . 1 6 3 8 . Energy Gun 6 | 2 . . 2 . . . . 1 1 . Energy Cannon 2 | . . . . . . . . . 2 . Ballistic Gun 12 | 1 . . 2 . . 1 6 1 1 . Ballistic Cannon 4 | . . . . . . . . 1 3 . Launcher 3 | . 1 2 . . . . . . . . Special Weapon 1 | . . . . . . . . . 1 . Impact Weapon . | . . . . . . . . . . . Slashing Weapon . | . . . . . . . . . . . Piercing Weapon . | . . . . . . . . . . . Special Melee Weapon . | . . . . . . . . . . . Unidentified Prototypes 4 | . . . . . . . . . 4 . Parts Lost 2 | . . . . . . . . 2 . . Power . | . . . . . . . . . . . Propulsion 2 | . . . . . . . . 2 . . Utility . | . . . . . . . . . . . Weapon . | . . . . . . . . . . . Highest Loss Streak 1 | . . . . . . . . 1 . . Average Slot Usage (%) 80 | . 57 69 64 64 63 61 87 95 90 . Engine 4 | . 10 10 9 9 9 9 4 . . . Core 4 | . . . . . . . 3 8 8 . Wheel 2 | . 20 20 5 . . . . . . . Flight 10 | . . . 8 14 7 4 16 15 8 . Device 8 | . 10 10 9 9 12 14 10 4 5 . Processor 10 | . . . . 2 4 4 13 17 18 . Hackware 10 | . 1 5 4 4 4 4 7 16 20 . Protection 1 | . . . . . . . 1 4 4 . Energy Gun 1 | . 10 10 6 . . . . . . . Ballistic Gun 16 | . 5 5 8 14 14 14 21 21 16 . Ballistic Cannon 1 | . . . . . . . . 1 3 . Launcher 4 | . . 9 9 9 9 9 4 1 . . Naked Turns . | . . . . . . . . . . . Heaviest Build 42 | 17 20 24 27 27 35 36 42 39 40 40 Greatest Support 102 | 82 82 82 82 48 102 102 102 48 44 44 Greatest Overweight (x) 1 | . . . . . . . . 1 . . Average Overweight (x) . | . . . . . . . . . . . Largest Inventory Capacity 10 | 10 10 10 10 10 10 10 10 10 10 10 Average Capacity 10 | 10 10 10 10 10 10 10 10 10 10 10 Most Carried 10 | . 1 1 5 2 7 9 10 10 10 9 Average Carried 7 | . . . 2 1 5 8 8 9 9 9 Final Capacity 10 | 10 10 10 10 10 10 10 10 10 10 10 Final Carried 10 | . 1 1 1 2 7 9 9 10 9 9 Class Distribution -------------------- 84% | Wizard-Scout 12% | Wizard-Skirmisher Dominant Class ---------------- Wizard-Skirmisher | -10/Materials Wizard-Skirmisher | -10/Mines Wizard-Scout | -9/Materials Wizard-Scout | -9/Mines Wizard-Scout | -9/Exiles Wizard-Scout | -8/Mines Wizard-Scout | -8/Materials Wizard-Scout | -8/Garrison Wizard-Scout | -8/Storage Wizard-Scout | -7/Factory Resources | -11 -10 -10 -9 -9 -9 -8 -8 -8 -8 -7 ----------- Run | Scr Mat Min Mat Min Exi Min Mat Gar Sto Fac Matter Collected 2925 | 140 20 56 211 80 . 186 701 685 846 . Remotely . | . . . . . . . . . . . Salvage Created 4384 | 92 33 156 316 165 . 310 1094 1187 1031 . Parts 289 | 7 11 4 39 8 . 24 68 45 83 . Haulers Intercepted 2 | . . . . . . . 2 . . . Recyclers Shooed . | . . . . . . . . . . . Parts Field Recycled . | . . . . . . . . . . . Retrieved Matter . | . . . . . . . . . . . Parts Self-Destructed . | . . . . . . . . . . . Prevented . | . . . . . . . . . . . Kills | -11 -10 -10 -9 -9 -9 -8 -8 -8 -8 -7 ------- Run | Scr Mat Min Mat Min Exi Min Mat Gar Sto Fac Combat Hostiles Destroyed 117 | . 2 17 14 5 . 11 19 23 26 . Guns 104 | . 2 5 14 5 . 11 19 23 25 . Cannons 1 | . . . . . . . . . 1 . AOE 12 | . . 12 . . . . . . . . Classes Destroyed 15 | 2 3 3 2 . . 1 1 1 2 . Worker 3 | . . 1 . . . . 1 . 1 . Builder 2 | . . . . . . . . . 2 . Tunneler 2 | 2 . . . . . . . . . . Hauler 2 | . . . . . . . 2 . . . Recycler 3 | 1 . . . . . . 1 . 1 . Operator 7 | . 1 . 1 . . . 1 . 4 . Watcher 11 | . 1 . 3 . . . 4 1 2 . Swarmer 29 | . . . 8 . . 8 6 4 3 . Grunt 47 | . 2 . 5 5 . 2 7 12 14 . Brawler 2 | . . . . . . . . 1 1 . Duelist 2 | . . . . . . 1 . 1 . . Protector 1 | . . . . . . . . . 1 . Sentry 17 | . . . 1 . . . 6 3 7 . Hunter 2 | . . . . . . . . 2 . . Assembled 17 | . . 17 . . . . . . . . Guerrilla 1 | . . 1 . . . . . . . . Best Kill Streak 16 | 3 4 16 6 2 . 4 6 11 9 . Combat Bots Only 16 | . 2 16 4 2 . 4 6 11 8 . Max Kills in Single Turn 8 | 1 1 8 1 1 . 2 3 2 2 . Gunslinging 2 | . . . . . . 1 2 1 1 . Exploded 8 | . . 8 . . . . . . . . Melee . | . . . . . . . . . . . Uniques/NPCs Destroyed . | . . . . . . . . . . . Combat | -11 -10 -10 -9 -9 -9 -8 -8 -8 -8 -7 -------- Run | Scr Mat Min Mat Min Exi Min Mat Gar Sto Fac Damage Taken 2479 | . 10 449 191 94 . 128 162 737 708 . Core 1912 | . 8 355 145 78 . 100 128 574 524 . Absorbed by Shields . | . . . . . . . . . . . Redirected to Core 1731 | . 8 332 134 54 . 86 114 540 463 . Core Remaining (%) 87 | 100 . 57 . . . 91 . . 100 . Volleys Fired 227 | 4 5 9 32 10 . 12 43 53 59 . Largest 6 | 3 3 5 3 3 . 3 5 6 5 . Hottest 192 | 100 100 163 100 66 . 66 115 172 192 . Shots Fired 882 | 12 12 31 93 30 . 36 206 227 235 . Gun 830 | 12 12 26 93 30 . 36 205 204 212 . Cannon 46 | . . . . . . . . 23 23 . Launcher 6 | . . 5 . . . . 1 . . . Special . | . . . . . . . . . . . Kinetic 805 | 4 5 9 62 30 . 36 205 220 234 . Thermal 36 | 4 2 8 14 . . . . 7 1 . Explosive 6 | . . 5 . . . . 1 . . . Electromagnetic 35 | 4 5 9 17 . . . . . . . Robot Hit Streak 61 | 4 15 30 61 23 . 49 58 35 31 . Robot Miss Streak 2 | 1 . 1 1 1 . . 2 1 1 . Penetration Max . | . . . . . . . . . . . Secondary Targets 25 | . . 2 2 . . 3 5 6 7 . Max Gunslinging Chain 2 | . . 1 1 . . 1 2 2 1 . Shots Hit Robots 620 | 7 12 27 70 27 . 26 153 125 173 . Core Hits 260 | 3 6 35 22 8 . 15 59 51 61 . Critical Hits 11 | . . . . 1 . 2 2 3 3 . Critical Kills 4 | . . . . . . 1 1 1 1 . Critical Parts Destroyed 6 | . . . . 1 . 1 1 1 2 . Melee Attacks . | . . . . . . . . . . . Impact . | . . . . . . . . . . . Slashing . | . . . . . . . . . . . Piercing . | . . . . . . . . . . . Sneak Attacks . | . . . . . . . . . . . Combat Hostiles . | . . . . . . . . . . . Follow-up Attacks . | . . . . . . . . . . . Damage Inflicted 10447 | 92 163 1057 1030 450 . 455 2044 1968 3188 . Guns 9238 | 92 163 300 1030 450 . 455 2044 1897 2807 . Cannons 452 | . . . . . . . . 71 381 . Explosions 757 | . . 757 . . . . . . . . Melee . | . . . . . . . . . . . Ramming . | . . . . . . . . . . . Kinetic 8997 | 29 74 121 733 450 . 455 2044 1968 3123 . Thermal 299 | 33 23 91 87 . . . . . 65 . Explosive 757 | . . 757 . . . . . . . . Electromagnetic 394 | 30 66 88 210 . . . . . . . Impact . | . . . . . . . . . . . Slashing . | . . . . . . . . . . . Piercing . | . . . . . . . . . . . Highest Corruption . | . . . . . . . . . . . Average Corruption . | . . . . . . . . . . . Corruption Purged . | . . . . . . . . . . . Overload Shots . | . . . . . . . . . . . Overflow Damage 37 | . . 27 . . . . . 1 9 . Projectiles 9 | . . . . . . . . . 9 . Explosions 28 | . . 27 . . . . . 1 . . Melee . | . . . . . . . . . . . Knockbacks 3 | . . . . . . . . 1 2 . Impact . | . . . . . . . . . . . Kinetic 3 | . . . . . . . . 1 2 . Secondary . | . . . . . . . . . . . Self-Inflicted Damage 103 | . . 9 . . . . . 94 . . Shots 2 | . . 1 . . . . . 1 . . Rammed . | . . . . . . . . . . . Targets Rammed . | . . . . . . . . . . . Kicked . | . . . . . . . . . . . Crushed . | . . . . . . . . . . . Highest Temperature 72 | . . 13 . . . . 3 72 51 . Average Temperature 17 | . . 6 . . . . 2 21 14 . Received Heat Transfer 987 | . 6 114 39 45 . 45 72 261 405 . Siege Activations . | . . . . . . . . . . . Robots Corrupted . | . . . . . . . . . . . Combat Hostiles . | . . . . . . . . . . . Parts Fried . | . . . . . . . . . . . Impact Corruptions . | . . . . . . . . . . . Robots Melted . | . . . . . . . . . . . Combat Hostiles . | . . . . . . . . . . . Parts Melted 2 | . . 1 1 . . . . . . . Heat Transferred 600 | 75 50 200 200 . . . . . 75 . Parts Sabotaged . | . . . . . . . . . . . Parts Stolen . | . . . . . . . . . . . Parts Stripped . | . . . . . . . . . . . Power Chain Reactions . | . . . . . . . . . . . Missiles Intercepted . | . . . . . . . . . . . Alert | -11 -10 -10 -9 -9 -9 -8 -8 -8 -8 -7 ------- Run | Scr Mat Min Mat Min Exi Min Mat Gar Sto Fac Peak Influence 1105 | 15 101 104 606 370 . 250 419 1105 629 128 Initial 538 | . 9 39 40 235 . . 97 130 538 128 Average 265 | 6 50 52 267 304 . 96 176 610 204 128 Maximum Alert Level 4 | . . . 2 1 . 1 2 4 2 . Low Security (%) 55 | 100 100 100 41 . . 94 71 21 49 100 Level 1 23 | . . . 19 100 . 5 25 6 38 . Level 2 13 | . . . 39 . . . 2 30 12 . Level 3 6 | . . . . . . . . 29 . . Level 4 2 | . . . . . . . . 11 . . Level 5 . | . . . . . . . . . . . High Security . | . . . . . . . . . . . Max Security . | . . . . . . . . . . . Squads Dispatched 11 | . . . 3 1 . . 2 . 5 . Investigation . | . . . . . . . . . . . Extermination . | . . . . . . . . . . . Reinforcement 6 | . . . 3 . . . 1 . 2 . Assault 3 | . . . . 1 . . . . 2 . Garrison 2 | . . . . . . . 1 . 1 . Intercept . | . . . . . . . . . . . Construction Impeded . | . . . . . . . . . . . Haulers Reinforced . | . . . . . . . . . . . Stealth | -11 -10 -10 -9 -9 -9 -8 -8 -8 -8 -7 --------- Run | Scr Mat Min Mat Min Exi Min Mat Gar Sto Fac Distress Signals 6 | . 1 1 3 . . . 1 . . . Communications Jammed . | . . . . . . . . . . . Distress Signals . | . . . . . . . . . . . Times Spotted 152 | . 5 25 27 5 . 11 20 24 35 . Peak Tracking Total 14 | . 3 14 7 3 . 4 3 8 7 . Tactical Retreats 10 | . . 3 3 1 . . . 3 . . Traps | -11 -10 -10 -9 -9 -9 -8 -8 -8 -8 -7 ------- Run | Scr Mat Min Mat Min Exi Min Mat Gar Sto Fac Traps Triggered 6 | . . . . 1 . . . 5 . . Indirectly . | . . . . . . . . . . . Trap Hack Attempts . | . . . . . . . . . . . Triggered . | . . . . . . . . . . . Disarmed 16 | . 10 . . . . . 6 . . . Reprogrammed . | . . . . . . . . . . . Reused . | . . . . . . . . . . . Traps Extracted . | . . . . . . . . . . . Installed . | . . . . . . . . . . . Triggered . | . . . . . . . . . . . Machines | -11 -10 -10 -9 -9 -9 -8 -8 -8 -8 -7 ---------- Run | Scr Mat Min Mat Min Exi Min Mat Gar Sto Fac Machines Disabled 16 | . 1 . 1 . . . 2 6 6 . Max in Single Turn 2 | . 1 . 1 . . . 1 2 1 . Garrison Relay 4 | . . . . . . . . 4 . . Phase Generator 1 | . . . . . . . . 1 . . Machines Sabotaged . | . . . . . . . . . . . Garrisons Compromised . | . . . . . . . . . . . Overloaded Fab Kills . | . . . . . . . . . . . Fab Network Shutdowns . | . . . . . . . . . . . Hacking | -11 -10 -10 -9 -9 -9 -8 -8 -8 -8 -7 --------- Run | Scr Mat Min Mat Min Exi Min Mat Gar Sto Fac Machines Accessed 21 | . 2 . . 1 1 . 7 . 10 . Terminals 16 | . 2 . . . . . 5 . 9 . Fabricators . | . . . . . . . . . . . Repair Stations . | . . . . . . . . . . . Recycling Units . | . . . . . . . . . . . Scanalyzers 1 | . . . . . . . 1 . . . Garrison Access 2 | . . . . . . . 1 . 1 . Total Hacks 70 | . 7 . . 1 1 . 24 . 37 . Successful 68 | . 7 . . 1 1 . 24 . 35 . Failed 2 | . . . . . . . . . 2 . Catastrophic . | . . . . . . . . . . . Database Lockouts . | . . . . . . . . . . . Manual 42 | . 4 . . . 1 . 16 . 21 . Terminals 63 | . 7 . . . . . 20 . 36 . Fabricators . | . . . . . . . . . . . Repair Stations . | . . . . . . . . . . . Recycling Units . | . . . . . . . . . . . Scanalyzers 1 | . . . . . . . 1 . . . Garrison Access 4 | . . . . . . . 3 . 1 . Terminal Hacks 53 | . 7 . . 1 1 . 15 . 29 . Record 1 | . . . . . . . 1 . . . Part Schematic 6 | . . . . . . . . . 6 . Robot Schematic 2 | . . . . . . . . . 2 . Robot Analysis 2 | . 1 . . . . . . . 1 . Prototype ID Bank 1 | . 1 . . . . . . . . . Open Door 5 | . . . . 1 . . . . 4 . Branch Access Points 4 | . 2 . . . . . . . 2 . Emergency Access Points 1 | . . . . . . . . . 1 . Machine Index 1 | . . . . . . . 1 . . . Alert Level 4 | . . . . . . . 4 . . . Unreport Threat 12 | . . . . . . . 3 . 9 . Disarm Traps 4 | . 2 . . . . . 1 . 1 . Dispatch Records 1 | . . . . . . . 1 . . . Transport Status 1 | . . . . . . . 1 . . . Extermination Status 1 | . . . . . . . . . 1 . Recall Investigation 1 | . . . . . . . 1 . . . Recall Reinforcements 2 | . . . . . . . 1 . 1 . Registered Components 1 | . 1 . . . . . . . . . Registered Prototypes 1 | . . . . . . . 1 . . . Zone Layout 1 | . . . . . . . . . 1 . EX-Prototype ID Bank 1 | . . . . . 1 . . . . . Fabricator Hacks . | . . . . . . . . . . . Repair Station Hacks . | . . . . . . . . . . . Recycling Unit Hacks . | . . . . . . . . . . . Scanalyzer 1 | . . . . . . . 1 . . . Insert Component 1 | . . . . . . . 1 . . . Garrison Access Hacks 3 | . . . . . . . 2 . 1 . Unlock Access 2 | . . . . . . . 1 . 1 . Coupler Status 1 | . . . . . . . 1 . . . Unauthorized Hacks 11 | . . . . . . . 6 . 5 . Terminals 10 | . . . . . . . 5 . 5 . Track 1 | . . . . . . . . . 1 . Assimilate 3 | . . . . . . . 2 . 1 . Botnet 4 | . . . . . . . 2 . 2 . Operators 2 | . . . . . . . 1 . 1 . Fabricators . | . . . . . . . . . . . Repair Stations . | . . . . . . . . . . . Recycling Units . | . . . . . . . . . . . Scanalyzers . | . . . . . . . . . . . Garrison Access 1 | . . . . . . . 1 . . . Reprogram 1 | . . . . . . . 1 . . . Data Cores Recovered 3 | . 1 . . . . . . . 2 . Used 2 | . 1 . . . . . . . 1 . Hacking Detections 3 | . . . . . . . 1 . 2 . Full Trace Events . | . . . . . . . . . . . Feedback Events . | . . . . . . . . . . . Feedback Blocked . | . . . . . . . . . . . Robot Schematics Acquired 2 | . . . . . . . . . 2 . Robots Built . | . . . . . . . . . . . Matter . | . . . . . . . . . . . Time . | . . . . . . . . . . . Total Robot Build Rating . | . . . . . . . . . . . Part Schematics Acquired 6 | . . . . . . . . . 6 . Parts Built . | . . . . . . . . . . . Matter . | . . . . . . . . . . . Time . | . . . . . . . . . . . Total Part Build Rating . | . . . . . . . . . . . Parts Repaired . | . . . . . . . . . . . Time . | . . . . . . . . . . . Parts Recycled . | . . . . . . . . . . . Recycled Matter . | . . . . . . . . . . . Retrieved Matter . | . . . . . . . . . . . Retrieved Components . | . . . . . . . . . . . Parts Scanalyzed . | . . . . . . . . . . . Part Schematics Acquired . | . . . . . . . . . . . Parts Damaged . | . . . . . . . . . . . Bothacking | -11 -10 -10 -9 -9 -9 -8 -8 -8 -8 -7 ------------ Run | Scr Mat Min Mat Min Exi Min Mat Gar Sto Fac Used RIF Installer 1 | . . . . . . . . 1 . . Robots Hacked . | . . . . . . . . . . . Non-combat . | . . . . . . . . . . . Combat . | . . . . . . . . . . . Robot Hacks Applied . | . . . . . . . . . . . Relay Couplers Released 7 | . . . . . . . . 7 . . Machine Destruction 7 | . . . . . . . . 7 . . Attached 2 | . . . . . . . . 2 . . Robots Rewired . | . . . . . . . . . . . Allies Hacked . | . . . . . . . . . . . Hacks Repelled . | . . . . . . . . . . . Allies | -11 -10 -10 -9 -9 -9 -8 -8 -8 -8 -7 -------- Run | Scr Mat Min Mat Min Exi Min Mat Gar Sto Fac Total Allies 3 | . . . . . . . 1 . 2 . Largest Group 3 | . . . . . . . 1 1 3 . Highest-Rated Group 72 | . . . . . . . 10 10 72 . Highest-Rated Ally 31 | . . . . . . . 10 10 31 . Total Orders 5 | . . . . . . . 2 2 1 . STAY 3 | . . . . . . . 1 1 1 . FOLLOW 2 | . . . . . . . 1 1 . . Ally Attacks 32 | . . . . . . . . . 32 . Total Damage 463 | . . . . . . . . . 463 . Kills 3 | . . . . . . . . . 3 . Allies Corrupted . | . . . . . . . . . . . Allies Melted . | . . . . . . . . . . . Intel | -11 -10 -10 -9 -9 -9 -8 -8 -8 -8 -7 ------- Run | Scr Mat Min Mat Min Exi Min Mat Gar Sto Fac Robot Analysis Total 2 | . 1 . . . . . . . 1 . Derelict Logs Recovered 2 | . . 1 . 1 . . . . . . Drone Launches . | . . . . . . . . . . . Drone Recoveries . | . . . . . . . . . . . Exploration | -11 -10 -10 -9 -9 -9 -8 -8 -8 -8 -7 ------------- Run | Scr Mat Min Mat Min Exi Min Mat Gar Sto Fac Turns Passed 3833 | 77 118 195 369 216 176 397 786 758 740 1 Spaces Moved 6313 | 53 110 180 442 511 383 651 1644 1087 1251 1 Core 53 | 7 . . . . . . . 44 2 . Treads . | . . . . . . . . . . . Legs . | . . . . . . . . . . . Wheels 448 | 46 110 180 112 . . . . . . . Hover . | . . . . . . . . . . . Flight 5812 | . . . 330 511 383 651 1644 1043 1249 1 Fastest Speed 31 | 50 90 90 34 31 31 50 31 31 34 34 Average Speed 40 | 91 90 90 49 33 43 50 32 34 36 34 Slowest Speed 100 | 100 90 90 90 34 50 50 50 100 50 34 Overloaded Moves . | . . . . . . . . . . . Propulsion Burnouts . | . . . . . . . . . . . Robots Hopped 74 | . . . . 8 . 11 14 . 41 . Cave-ins Triggered . | . . . . . . . . . . . Exploration Rate (%) 60 | 5 25 56 28 94 69 97 67 80 88 . Regions Visited 10 Branch Regions 5 Pre-discovered Areas 1 | . . 1 . . . . . . . . Known Exits Taken 4 | . 1 . . . . 1 1 . 1 . Unknown Exits Taken 5 | 1 . 1 1 1 1 . . . . . Scrap Searched 3 | . . 1 . 1 . 1 . . . . Spaces Dug 9 | . . . . . . . 8 . 1 . Terrain Destroyed 160 | . . 46 . . . . 8 96 10 . Melee . | . . . . . . . . . . . Projectile 16 | . . . . . . . . 6 10 . AOE 144 | . . 46 . . . . 8 90 . . Terrain Rammed . | . . . . . . . . . . . Walls Destroyed . | . . . . . . . . . . . Machines Disabled . | . . . . . . . . . . . Actions | -11 -10 -10 -9 -9 -9 -8 -8 -8 -8 -7 --------- Run | Scr Mat Min Mat Min Exi Min Mat Gar Sto Fac Total 6963 | 67 117 191 523 522 393 683 1785 1339 1342 1 Wait 258 | . . . 10 1 . 26 67 136 18 . Move 6160 | 52 109 179 441 494 382 629 1615 1085 1173 1 Hop 68 | . . . . 8 . 10 14 . 36 . Pick Up 18 | . . 1 . 1 5 2 2 3 4 . Fast Attach 39 | 11 2 1 7 2 2 1 8 2 3 . Attach 9 | . . 1 . . . . 6 1 1 . Detach 10 | . 1 . 4 . . . 4 1 . . Swap 17 | . . . . . . . 7 2 8 . Drop 31 | . . . 8 . 4 . 10 3 6 . Fire 227 | 4 5 9 32 10 . 12 43 53 59 . Melee . | . . . . . . . . . . . Ram . | . . . . . . . . . . . Kick . | . . . . . . . . . . . Crush . | . . . . . . . . . . . Escape Stasis 37 | . . . . . . . . 37 . . Rewire . | . . . . . . . . . . . Trap . | . . . . . . . . . . . Miscellaneous 89 | . . . 21 6 . 3 9 16 34 . Route ------- -11/Scrapyard -10/Materials (discovered 2 exits: *Min x2) -10/Mines -9/Materials (discovered 2 exits: *Mat / *Min) -9/Mines (discovered 4 exits: *Mat x2 / *Exi / [*Zio]) -9/Exiles (discovered 2 exits: [*Min x2]) -8/Mines (discovered 2 exits: *Mat x2) -8/Materials (discovered 4 exits: *Fac x3 / Gar) -8/Garrison (discovered 3 exits: *Sto x3) -8/Storage (discovered 3 exits: *Fac / Rec / Gar) -7/Factory History --------- Turn | Location | Event 1 | -11/Scrapyard | Upgraded with Power slot (x1) 1 | -11/Scrapyard | Upgraded with Propulsion slot (x3) 1 | -11/Scrapyard | Upgraded with Utility slot (x7) 1 | -11/Scrapyard | Upgraded with Weapon slot (x5) 10 | -11/Scrapyard | Discovered new exit (range 19) 78 | -11/Scrapyard | Entered Materials 104 | -10/Materials | Identified exit to Mines 196 | -10/Materials | Entered Mines 197 | -10/Mines | Assembled infested the area 202 | -10/Mines | Assisted by a Guerilla fighting off Assembled 203 | -10/Mines | Received a Rocket Launcher from a helpful Derelict 246 | -10/Mines | Destroyed 16 combat bots 302 | -10/Mines | Build established: Wizard-Skirmisher 327 | -10/Mines | Learned location of Mines (-9) 381 | -10/Mines | Discovered new exit (range 8) 391 | -10/Mines | Entered Materials 393 | -9/Materials | Reached level 2 510 | -9/Materials | Reached level 3 696 | -9/Materials | Reached level 4 733 | -9/Materials | Upgraded with Utility slot (x1) 736 | -9/Materials | Discovered new exit (range 18) 738 | -9/Materials | Discovered new exit (range 18) 760 | -9/Materials | Entered Mines 794 | -9/Mines | Build established: Wizard-Scout 810 | -9/Mines | Met a Derelict bent on vengeance 839 | -9/Mines | Identified exit to Materials 851 | -9/Mines | Met a Derelict who couldn't figure out how to use a Trap Extractor 886 | -9/Mines | Reached level 5 907 | -9/Mines | Discovered exit to Materials (range 7) 913 | -9/Mines | Met a Derelict testing a Signal Generator 955 | -9/Mines | A Derelict revealed a hidden shortcut to a safe place 974 | -9/Mines | Deemed a non-threat by the Exiles lab entrance 974 | -9/Mines | Discovered new exit (range 5) 976 | -9/Mines | Entered Exiles 983 | -9/Exiles | Discovered new exit (range 17) 986 | -9/Exiles | Met 8R-AWN 992 | -9/Exiles | Met EX-HEX 1001 | -9/Exiles | Met EX-BIN 1005 | -9/Exiles | Aligned with FarCom system 1005 | -9/Exiles | Given EX-Vault access code 1013 | -9/Exiles | Opened EX-Vault 1017 | -9/Exiles | Found Cloak of Protection 1021 | -9/Exiles | Found Flying Fortress v7 1041 | -9/Exiles | Found Supersonic Drone Bay 1054 | -9/Exiles | Warned to stay clear of 0b10 Research branches 1070 | -9/Exiles | Met EX-DEC 1113 | -9/Exiles | Discovered new exit (range 10) 1152 | -9/Exiles | Stole three prototypes: Cloak of Protection, Flying Fortress v7, Supersonic Drone Bay 1152 | -9/Exiles | Entered Mines 1185 | -8/Mines | Reached level 6 1365 | -8/Mines | Discovered exit to Materials (range 7) 1540 | -8/Mines | Discovered exit to Materials (range 10) 1549 | -8/Mines | Entered Materials 1551 | -8/Materials | Reached level 7 1589 | -8/Materials | Upgraded with Utility slot (x1) 1658 | -8/Materials | Discovered new exit (range 4) 1822 | -8/Materials | Discovered new exit (range 15) 1847 | -8/Materials | Reached level 8 2059 | -8/Materials | Garrison activated, responded to threat 2104 | -8/Materials | Discovered new exit (range 11) 2159 | -8/Materials | Reached level 9 2315 | -8/Materials | Identified exit to Factory 2330 | -8/Materials | Identified exit to Garrison 2335 | -8/Materials | Entered Garrison 2335 | -8/Garrison | Accompanied by 1 ally 2486 | -8/Garrison | Discovered new exit (range 20) 2495 | -8/Garrison | Identified exit to Storage 2514 | -8/Garrison | Triggered checkpoint 2524 | -8/Garrison | Triggered checkpoint 2530 | -8/Garrison | Reached level 10 2544 | -8/Garrison | Triggered checkpoint 2608 | -8/Garrison | Discovered exit to Storage (range 15) 2612 | -8/Garrison | Destroyed 11 combat bots 2625 | -8/Garrison | Installed Relay Interface Framework 2677 | -8/Garrison | Garrison Relay disabled 2677 | -8/Garrison | Reached level 11 2679 | -8/Garrison | Upgraded with Utility slot (x1) 2694 | -8/Garrison | Discovered exit to Storage (range 13) 2756 | -8/Garrison | Triggered checkpoint 2782 | -8/Garrison | Garrison Relay disabled 2836 | -8/Garrison | Triggered checkpoint 2858 | -8/Garrison | Garrison Relay disabled 2906 | -8/Garrison | Triggered checkpoint 2966 | -8/Garrison | Garrison Relay disabled 2996 | -8/Garrison | Phase Generator disabled 2996 | -8/Garrison | Reached level 12 3093 | -8/Garrison | Entered Storage 3093 | -8/Storage | Accompanied by 1 ally 3096 | -8/Storage | Upgraded with Utility slot (x1) 3147 | -8/Storage | Garrison activated, responded to threat 3221 | -8/Storage | Identified exit to Recycling 3345 | -8/Storage | Reached level 13 3364 | -8/Storage | Identified exit to Garrison 3366 | -8/Storage | Destroyed 8 combat bots 3467 | -8/Storage | Discovered exit to Factory (range 24) 3595 | -8/Storage | Met a pair of Derelict thieves 3752 | -8/Storage | Destroyed 8 combat bots 3833 | -8/Storage | Entered Factory 3834 | -7/Factory | Self-destructed Last Messages --------------- 03731_ K-01 Serf collects debris. 03733_ G-47 Trooper destroyed. 03734_ K-01 Serf collects debris. 03742_ Used Protomatter to restore core integrity (+162, depleted) 03742_ K-01 Serf collects debris. 03749_ Used Protomatter to restore core integrity (+130) 03749_ K-01 Serf collects debris. 03751_ Acquired 77 matter. 03752_ Acquired 58 matter. 03753_ K-01 Serf collects debris. 03759_ R-06 Scavenger collects Imp. Heat Sink. 03762_ R-06 Scavenger collects Carbon-fiber Leg. 03763_ K-01 Serf collects debris. 03796_ HV Slug penetrates I-25 Savior. 03796_ I-25 Savior destroyed. 03814_ Acquired Flight Unit. 03824_ K-01 Serf collects debris. LOCATION=FACTORY GOAL=ESCAPE 03833_ Receiving FarCom transmissions... Map ----- +----------------------------------------------------+ | ?????????????????????????????????????????????????? | | ?????????????????????????????????????????????????? | | ???????????????????????? ??????????????????????? | | ??????????????????????? ?????????????????????? | | ??????????????????????? ?????????????????????? | | ??????????????????????# #????????????????????? | | ??????????????????????# u #????????????????????? | | ????????????????k?????# #????????????????????? | | ??????????????????????# #????????????????????? | | ??????????????????????# #????????????????????? | | ??????????????????????# #????????????????????? | | ??????????????????????+ #????????????????????? | | ??????????????????????# #????????????????????? | | ??????????????????????# #????????????????????? | | ??????????????????????# ###??????????????????? | | ??????????????????????# ??????????????????? | | ???????????????? ?????# ???? ??????????????? | | ??????????????????????# ???????????????????? | | ??????????????????????+ ???? ???????????????? | | ???????????#??????????# ????????????????????? | | ??????????????????????# #????????????????????? | | ??????????????????????# #????????????????????? | | ??????????????????????# ##???????????????????? | | ?????????????????#????# #????????????????????? | | ??????????????????????# #????????????????????? | | ??????????????????????# @ #????????????????????? | | ??????????????????????# #????????????????????? | | ????????????????????#?# #????????????????????? | | ??????????????????????# #????????????????????? | | ????????????#?????????#######????????????????????? | | ?????????????????????????????????????????????????? | | ?????????????????????????????????????????????????? | | ????????????????????????????#????????????????????? | | ?????????????????????????????????????????????????? | | ??????????????????????#??????????????????????????? | | ?????????????????????????????????????????????????? | | ?????????????????????????????????????????????????? | | ?????????????????????????????????????????????????? | | ?????????????????????????????????????????????????? | | ?????????????????????????????????????????????????? | | ?????????????????????????????????????????????????? | | ????????????????????????????????????????????????a? | | ?????????????????????????????????????????????????? | | ?????????????????????????????????????????????????? | | ?????????????????????????????????????????????????? | | ?????????????????????????????????????????????????? | | ?????????????????????????????????????????????????? | | ?????????????????????????????????????????????????? | | ?????????????????????????????????????????????????? | | ?????????????????????????????????????????????????? | +----------------------------------------------------+ Best States ------------- Heat Dissipation 61 Energy Generation 48 Energy Capacity 800 Matter Stores 500 Matter Capacity 500 Sight Range 24 Robot Scan Range 30 Terrain Scan Range 16 Terrain Scan Density 210 Cloak Strength 5 Resistance: KI 10 Resistance: TH 5 Resistance: EX 5 Utility Shielding 66 Evasion (%) 63 Targeting Accuracy 8 Core Analysis 6 Offensive Hacking 95 Defensive Hacking 85 Relay Coupler Types 88 Relay Coupler Value 2 Item Schematics ----------------- Energy Filter | -8/Storage | Hacked Imp. Shield Generator | -8/Storage | Hacked Adv. Terrain Scan Processor | -8/Storage | Hacked Deuterium Engine | -8/Storage | Hacked Launcher Guidance Computer | -8/Storage | Hacked Adv. Signal Interpreter | -8/Storage | Hacked Robot Schematics ------------------ G-34 Mercenary | -8/Storage | Hacked W-16 Scout | -8/Storage | Hacked Fabricated ------------ Nothing Alien Tech Used ----------------- None Achievements -------------- Exterminator Challenges ------------ None RPGLIKE | -11 -10 -10 -9 -9 -9 -8 -8 -8 -8 -7 --------- Run | Scr Mat Min Mat Min Exi Min Mat Gar Sto Fac Levels Raised 12 | . . . 3 1 . 1 3 3 1 . XP Earned 21884 | 3000 360 800 3879 1175 350 1750 4215 4197 2158 . XP Spent 140505 | 125000 . . 4155 . 1750 . 2900 3200 3500 . Upgrades 138 | 125 . . 5 . 5 . 1 1 1 . Power Slot 1 | 1 . . . . . . . . . . Propulsion Slot 3 | 3 . . . . . . . . . . Utility Slot 11 | 7 . . 1 . . . 1 1 1 . Weapon Slot 5 | 5 . . . . . . . . . . Core Integrity 8 | 5 . . 3 . . . . . . . Heat Dissipation 6 | 6 . . . . . . . . . . Energy Generation 5 | 4 . . 1 . . . . . . . Energy Storage 8 | 8 . . . . . . . . . . Matter Storage 4 | 4 . . . . . . . . . . Mass Support 6 | 6 . . . . . . . . . . Inventory Capacity 10 | 10 . . . . . . . . . . Sight Range 4 | 4 . . . . . . . . . . Sensor Range 15 | 10 . . . . 5 . . . . . Terrain Scan Density 1 | 1 . . . . . . . . . . Ranged Accuracy 13 | 13 . . . . . . . . . . Hack Attack % 15 | 15 . . . . . . . . . . Hack Defense % 15 | 15 . . . . . . . . . . KI Resistance % 2 | 2 . . . . . . . . . . TH Resistance % 1 | 1 . . . . . . . . . . EX Resistance % 1 | 1 . . . . . . . . . . KI Damage % 4 | 4 . . . . . . . . . . Protomatter Created 1369 | . 92 46 214 82 . 24 203 174 534 . Integrity Restored 1992 | . . . 492 118 . 50 204 351 777 . Core 1912 | . . . 492 94 . 15 204 351 756 . Parts 80 | . . . . 24 . 35 . . 21 . Protomatter Decayed 602 | . 57 15 19 45 . 2 134 57 273 . Game ------ Seed PointStorageMantle Manual? 0 Play Time 01:17:16 Cumulative 6.0 hours Start 2021.10.26 @ 04:00:53 End 2021.10.26 @ 19:32:35 Sessions 5 Manual Loads 0 Difficulty Rogue Special Mode Winter2019/RPGLIKE Game No. 8 Rogue 8 Adventurer 0 Explorer 0 Win Type - Total 0 Types 0/0/0/0/0/0/0/0/0 Lore% 14 Gallery% 10 Achievement% 62 Wizard Run 0 Options --------- ASCII 0 Keyboard 0 Movement Arrows Keybinds 0 Fullscreen 2 Font 18/X11 Map View 76x50 Tactical HUD 1 Map Filters NONE Filters NONE Steam 1 RUN: 1685be2c-9f1c-4c1d-a1c0-439663339a16